bitfinex/quotes_SOLUSD_20250406
["timestamp","ask_amount","ask_price","bid_price","bid_amount"]
[1743908491139,16.51300691,120.14,120.1,0.063]
[1743908491339,16.51300691,120.11,120.1,0.063]
[1743908491543,24.67820691,120.11,120.07,7.20516157]
[1743908494950,16.51300691,120.1,120.07,7.20516157]
[1743908495145,16.51300691,120.1,120.07,7.48948471]
[1743908495146,0.15342145,120.08,120.07,7.48948471]
[1743908496565,0.15342145,120.08,120.07,0.063]
[1743908505771,16.66642836,120.08,120.07,0.063]
[1743908506574,0.15342145,120.08,120.07,0.063]
[1743908509081,16.66642836,120.08,120.07,0.063]
[1743908515292,16.84496039,120.08,120.07,0.063]
[1743908516090,16.69153894,120.08,120.07,0.063]
[1743908516382,18.21643894,120.08,120.07,0.063]
[1743908516557,24.86543894,120.08,120.07,0.063]
[1743908516977,18.21643894,120.08,120.07,0.063]
[1743908517387,1.70343203,120.08,120.07,0.063]
[1743908517562,18.21643894,120.08,120.07,0.063]
[1743908519387,0.17853203,120.08,120.07,0.063]
[1743908523387,16.69153894,120.08,120.07,0.063]
[1743908526279,18.25933894,120.08,120.07,0.063]
[1743908526472,43.2945878,120.08,120.07,0.063]
[1743908526786,18.64964886,120.07,120.05,0.063]
[1743908526970,35.16265577,120.06,120.05,0.063]
[1743908528302,40.99305577,120.06,120.05,0.063]
[1743908528681,107.04508341,120.06,120.05,0.063]
[1743908533185,18.64964886,120.05,120.03,0.03]
[1743908533386,24.46640691,120.04,120.03,0.03]
[1743908535123,24.6260225,120.04,120.03,0.03]
[1743908538099,43.27567136,120.04,120.03,0.03]
[1743908539209,24.6260225,120.04,120.03,0.03]
[1743908545428,43.27567136,120.04,120.03,0.03]
[1743908545719,49.10697136,120.04,120.03,0.03]
[1743908545899,43.27567136,120.04,120.03,0.03]
[1743908553241,16.6726225,120.04,120.03,0.03]
[1743908555151,16.83963206,120.04,120.03,0.03]
[1743908556196,16.68001647,120.04,120.03,0.03]
[1743908557476,0.16700956,120.04,120.03,0.03]
[1743908557683,16.68001647,120.04,120.03,0.03]
[1743908558481,0.16700956,120.04,120.03,0.03]
[1743908560980,16.48336907,120.05,120.03,0.03]
[1743908561778,16.51300691,120.04,120.03,0.03]
[1743908564587,35.16265577,120.04,120.03,0.03]
[1743908564764,16.51300691,120.04,120.03,0.03]
[1743908568382,136.43138755,120.06,120.03,0.03]
[1743908568684,16.51300691,120.04,120.03,0.03]
[1743908574587,35.16265577,120.04,120.03,0.03]
[1743908574904,16.51300691,120.04,120.03,0.03]
[1743908575081,16.68816816,120.04,120.03,0.03]
[1743908575275,16.9724913,120.04,120.03,0.03]
[1743908575469,23.0524913,120.04,120.03,0.03]
[1743908575991,44.10613357,120.03,120.02,0.063]
[1743908576175,0.28432314,120.01,120.0,0.03]
[1743908576370,87.63914048,120.01,120.0,0.03]
[1743908576573,67.63914048,120.01,120.0,0.03]
[1743908576887,0.28432314,119.99,119.98,0.063]
[1743908577091,72.53294048,119.99,119.98,0.063]
[1743908577392,0.28432314,119.97,119.94,0.063]
[1743908577592,35.44697891,119.95,119.94,0.063]
[1743908577768,35.16265577,119.95,119.94,0.063]
[1743908578189,35.44697891,119.95,119.94,0.063]
[1743908579093,60.61914048,119.95,119.94,0.063]
[1743908579464,60.61914048,119.95,119.9,26.03]
[1743908579465,80.61914048,119.95,119.9,0.03]
[1743908579682,16.51300691,119.91,119.9,0.03]
[1743908579991,35.16265577,119.91,119.9,0.03]
[1743908580373,7.04,119.96,119.9,0.03]
[1743908580589,16.51300691,119.94,119.9,42.54300691]
[1743908580797,7.04,119.96,119.91,16.51300691]
[1743908581088,16.51300691,119.93,119.9,26.03]
[1743908581298,151.21300691,119.93,119.9,26.03]
[1743908581513,16.51300691,119.92,119.9,26.03]
[1743908581683,16.51300691,119.91,119.9,26.03]
[1743908581886,151.21300691,119.93,119.9,26.03]
[1743908582272,134.7,119.93,119.9,26.03]
[1743908582795,151.21300691,119.93,119.9,26.03]
[1743908584882,16.51300691,119.92,119.9,26.03]
[1743908586279,16.79733005,119.91,119.9,0.03]
[1743908586597,20.0,119.89,119.8,0.909]
[1743908586769,16.51300691,119.82,119.8,0.909]
[1743908586975,16.51300691,119.83,119.8,0.909]
[1743908587176,16.51300691,119.82,119.8,0.909]
[1743908587375,35.16265577,119.81,119.8,0.909]
[1743908587797,18.64964886,119.8,119.77,60.43850767]
[1743908587996,6.3566,119.84,119.77,50.43850768]
[1743908588295,1.5559,119.86,119.78,7.06]
[1743908588296,153.633972,119.85,119.78,7.06]
[1743908588471,16.51300691,119.82,119.8,26.0]
[1743908588672,16.51300691,119.82,119.77,66.95151459]
[1743908588673,16.51300691,119.82,119.78,7.06]
[1743908589195,136.2559,119.9,119.81,42.51300691]
[1743908589379,16.51300691,119.88,119.82,23.59300691]
[1743908589775,81.8,119.86,119.82,33.01897045]
[1743908590002,81.8,119.87,119.82,33.01897045]
[1743908590773,107.73897045,119.87,119.82,33.01897045]
[1743908591295,25.93897045,119.86,119.81,59.01897045]
[1743908591501,25.93897045,119.84,119.81,33.08]
[1743908591674,81.8,119.85,119.81,33.08]
[1743908591675,25.93897045,119.82,119.81,26.0]
[1743908591871,25.93897045,119.82,119.78,0.03]
[1743908592099,25.93897045,119.79,119.78,0.03]
[1743908592402,25.93897045,119.77,119.72,25.93897045]
[1743908592596,25.93897045,119.77,119.75,26.0]
[1743908592597,81.77,119.76,119.75,26.0]
[1743908592915,81.77,119.76,119.72,25.93897045]
[1743908593403,81.77,119.76,119.73,25.93897045]
[1743908593814,76.5638,119.76,119.75,51.93897045]
[1743908594018,66.1514,119.76,119.75,51.93897045]
[1743908594516,66.1514,119.76,119.75,52.36545516]
[1743908594687,66.1514,119.76,119.75,51.93897045]
[1743908595108,66.31008315,119.76,119.75,51.93897045]
[1743908595317,66.31008315,119.76,119.75,26.0]
[1743908595794,66.31008315,119.76,119.72,51.93897045]
[1743908595795,0.15868315,119.76,119.72,51.93897045]
[1743908595986,81.8,119.75,119.72,51.93897045]
[1743908596186,0.15868315,119.76,119.74,25.93897045]
[1743908596605,0.15868315,119.76,119.75,26.0]
[1743908596808,81.95868315,119.76,119.72,25.93897045]
[1743908597116,107.73897045,119.75,119.7,25.93897045]
[1743908597299,25.93897045,119.74,119.69,25.93897045]
[1743908597504,81.8,119.73,119.69,25.93897045]
[1743908597708,25.93897045,119.74,119.72,26.0]
[1743908597902,0.15868315,119.76,119.72,26.0]
[1743908598203,81.8,119.75,119.71,26.0]
[1743908598525,81.8,119.74,119.73,26.0]
[1743908599606,81.8,119.74,119.72,25.93897045]
[1743908599817,81.8,119.74,119.73,25.93897045]
[1743908600901,0.15868315,119.76,119.73,26.36545516]
[1743908601109,0.15868315,119.76,119.75,26.36545516]
[1743908601821,0.15868315,119.76,119.75,41.95796247]
[1743908602821,0.15868315,119.76,119.75,60.60761133]
[1743908603000,0.15927617,119.77,119.76,19.07613357]
[1743908603196,0.15927617,119.77,119.76,109.29908909]
[1743908604326,0.15927617,119.77,119.76,90.64944023]
[1743908605433,0.15927617,119.77,119.76,49.11796247]
[1743908605717,0.15927617,119.77,119.76,67.76761133]
[1743908605919,0.17250808,119.78,119.76,109.79908909]
[1743908606126,0.16012717,119.79,119.78,18.933972]
[1743908606323,0.16012717,119.79,119.78,60.60761133]
[1743908608103,0.16012717,119.79,119.78,49.11796247]
[1743908608630,0.16012717,119.79,119.78,48.83363933]
[1743908609032,0.16012717,119.79,119.78,49.11796247]
[1743908609818,0.16012717,119.79,119.78,41.95796247]
[1743908610020,0.16012717,119.79,119.75,0.14216157]
[1743908610197,0.16012717,119.79,119.78,26.0]
[1743908610407,123.49160493,119.79,119.76,7.16]
[1743908610732,123.49160493,119.79,119.78,26.0]
[1743908611727,41.69160493,119.79,119.73,41.53147776]
[1743908612024,123.33147776,119.78,119.77,26.0]
[1743908612324,41.53147776,119.78,119.77,26.0]
[1743908612822,41.53147776,119.78,119.73,7.16]
[1743908613026,41.53147776,119.77,119.73,7.16]
[1743908613725,41.69160493,119.79,119.74,41.53147776]
[1743908614225,41.53147776,119.78,119.73,48.69147776]
[1743908614627,41.53147776,119.77,119.73,7.16]
[1743908615125,41.70420794,119.76,119.75,26.0]
[1743908615309,0.17273018,119.76,119.75,26.0]
[1743908615801,60.3538568,119.76,119.71,41.53147776]
[1743908616001,60.3538568,119.76,119.66,195.42]
[1743908616002,41.53147776,119.75,119.69,41.56147776]
[1743908616198,41.53147776,119.74,119.69,41.56147776]
[1743908616423,41.53147776,119.74,119.7,7.18]
[1743908616627,123.33147776,119.74,119.7,7.18]
[1743908616802,81.8,119.74,119.71,41.53147776]
[1743908617429,81.8,119.74,119.7,48.71147776]
[1743908618226,81.8,119.74,119.71,41.53147776]
[1743908618527,129.33327776,119.74,119.72,26.0]
[1743908618825,141.98112662,119.73,119.71,26.0]
[1743908619028,141.98112662,119.72,119.69,0.03]
[1743908619206,123.33147776,119.71,119.69,26.03]
[1743908619406,123.33147776,119.71,119.69,0.03]
[1743908619944,81.8,119.71,119.7,26.0]
[1743908620431,81.8,119.71,119.69,0.03]
[1743908620604,123.33147776,119.71,119.69,0.03]
[1743908620809,81.8,119.71,119.69,26.03]
[1743908621229,81.8,119.71,119.7,26.0]
[1743908622224,81.8,119.71,119.69,26.03]
[1743908622433,81.8,119.71,119.7,26.0]
[1743908622934,81.8,119.71,119.69,0.03]
[1743908622935,81.8,119.71,119.69,26.03]
[1743908623114,81.8,119.71,119.7,26.0]
[1743908624135,81.8,119.71,119.69,26.03]
[1743908624329,81.8,119.71,119.7,26.0]
[1743908626916,81.8,119.71,119.69,67.56147776]
[1743908627315,47.53327776,119.74,119.69,67.56147776]
[1743908627316,83.61913018,119.76,119.73,26.0]
[1743908627620,81.97273018,119.76,119.73,67.53147776]
[1743908627830,81.97273018,119.76,119.73,26.0]
[1743908628743,81.97273018,119.76,119.72,41.53147776]
[1743908629342,41.53147776,119.75,119.71,26.0]
[1743908629520,81.8,119.75,119.69,7.31]
[1743908629718,81.8,119.74,119.7,41.53147776]
[1743908630140,123.33147776,119.74,119.69,7.31]
[1743908630444,123.33147776,119.74,119.69,48.84147776]
[1743908630639,81.8,119.74,119.73,0.03]
[1743908630830,41.53147776,119.75,119.73,0.03]
[1743908632418,41.70420794,119.76,119.73,0.03]
[1743908633436,41.53147776,119.75,119.73,0.03]
[1743908634552,41.70420794,119.76,119.73,0.03]
[1743908635352,0.18100621,119.74,119.73,0.03]
[1743908638244,41.71248397,119.74,119.73,0.03]
[1743908638551,0.18100621,119.74,119.73,0.03]
[1743908639149,41.71248397,119.74,119.73,0.03]
[1743908640250,0.18100621,119.74,119.73,0.03]
[1743908644336,0.18100621,119.74,119.73,26.0205025]
[1743908654860,0.18100621,119.74,119.73,26.03]
[1743908655042,0.18100621,119.74,119.73,52.0205025]
[1743908655242,0.33543392,119.74,119.73,52.0205025]
[1743908655940,0.15442771,119.74,119.73,59.3005025]
[1743908656141,0.15442771,119.74,119.73,33.31]
[1743908656373,0.15442771,119.74,119.73,33.3005025]
[1743908657494,0.15442771,119.74,119.73,7.31]
[1743908657648,0.15442771,119.74,119.73,33.3005025]
[1743908662878,0.15442771,119.74,119.73,7.31]
[1743908664682,0.15442771,119.74,119.73,33.3005025]
[1743908665392,0.15442771,119.74,119.73,7.31]
[1743908665575,0.15442771,119.74,119.73,33.3005025]
[1743908665976,0.15442771,119.74,119.73,7.31]
[1743908666177,0.15442771,119.74,119.73,33.3005025]
[1743908673695,0.15442771,119.74,119.73,33.72698721]
[1743908675198,0.32893617,119.74,119.73,33.72698721]
[1743908675690,0.32893617,119.74,119.73,24.36320644]
[1743908675996,0.17450846,119.74,119.73,24.36320644]
[1743908678595,0.17450846,119.74,119.73,7.73648471]
[1743908678901,0.17450846,119.74,119.73,24.36320644]
[1743908682105,0.17450846,119.74,119.73,7.73648471]
[1743908682299,0.17450846,119.74,119.73,24.36320644]
[1743908687579,0.17450846,119.74,119.73,7.73648471]
[1743908687778,0.17450846,119.74,119.73,24.36320644]
[1743908689803,0.17450846,119.74,119.73,43.0128553]
[1743908691907,0.23909259,119.78,119.77,26.0]
[1743908692203,0.23909259,119.78,119.77,50.33320644]
[1743908695210,0.4106512,119.78,119.77,50.33320644]
[1743908696007,0.23455861,119.78,119.77,50.33320644]
[1743908696687,0.23455861,119.78,119.77,57.0705176]
[1743908697089,0.23455861,119.78,119.77,50.33320644]
[1743908702108,0.15843161,119.79,119.77,135.48974222]
[1743908702289,0.15843161,119.79,119.78,17.05320644]
[1743908702690,0.15843161,119.79,119.77,33.28]
[1743908702892,0.15843161,119.79,119.78,16.62672173]
[1743908704721,0.15843161,119.79,119.77,33.28]
[1743908704904,0.15843161,119.79,119.78,16.62672173]
[1743908705897,6.51023161,119.79,119.76,23.86672173]
[1743908706104,88.31023161,119.79,119.76,16.62672173]
[1743908707528,88.31023161,119.79,119.77,0.03]
[1743908707932,88.37323161,119.79,119.77,0.03]
[1743908708925,88.37323161,119.79,119.77,16.65672173]
[1743908715229,0.18278136,119.78,119.77,16.65672173]
[1743908716438,0.18278136,119.78,119.77,0.03]
[1743908717942,0.18278136,119.78,119.77,16.65672173]
[1743908722047,0.24578136,119.78,119.77,16.65672173]
[1743908724741,0.24578136,119.78,119.77,17.08320644]
[1743908726446,0.24578136,119.78,119.77,102.23974222]
[1743908735135,0.41610618,119.78,119.77,102.23974222]
[1743908736056,0.23332482,119.78,119.77,102.23974222]
[1743908737653,0.23332482,119.78,119.77,16.7988833]
[1743908737852,0.23332482,119.78,119.77,16.65672173]
[1743908738158,0.23332482,119.78,119.77,0.03]
[1743908739959,8.00482482,119.78,119.77,0.03]
[1743908740263,8.00482482,119.78,119.77,26.03]
[1743908743362,8.00482482,119.78,119.77,0.03]
[1743908745469,8.00482482,119.78,119.77,16.65672173]
[1743908745656,0.23332482,119.78,119.77,16.65672173]
[1743908746165,0.23332482,119.78,119.77,17.08320644]
[1743908747162,0.23332482,119.78,119.77,102.23974222]
[1743908749941,0.21815452,119.79,119.78,35.7028553]
[1743908750144,0.17848121,119.8,119.78,35.7028553]
[1743908750351,0.17611761,119.82,119.81,0.42648471]
[1743908750543,0.15465664,119.84,119.83,26.42648471]
[1743908750744,0.16587525,119.86,119.84,0.42648471]
[1743908750944,0.16587525,119.86,119.84,83.56009336]
[1743908751242,0.16587525,119.86,119.84,102.20974222]
[1743908751448,0.16587525,119.86,119.85,42.8628553]
[1743908751650,0.15893419,119.87,119.86,0.42648471]
[1743908751976,0.15893419,119.87,119.86,35.7028553]
[1743908753165,0.063,119.88,119.86,35.7028553]
[1743908753370,0.063,119.9,119.89,26.0]
[1743908753677,0.063,119.9,119.89,68.8628553]
[1743908754048,0.063,119.91,119.9,102.20974222]
[1743908754368,12.97753124,119.93,119.92,61.7028553]
[1743908754753,26.01806248,119.94,119.92,61.7028553]
[1743908754754,0.063,119.94,119.93,0.42648471]
[1743908754953,0.063,119.94,119.93,24.21320644]
[1743908755150,0.22568145,119.94,119.93,42.8628553]
[1743908755352,0.17763932,119.95,119.93,42.8628553]
[1743908755566,0.17763932,119.95,119.94,17.05320644]
[1743908755772,0.17763932,119.95,119.94,35.7028553]
[1743908756966,0.17763932,119.95,119.94,17.05320644]
[1743908757364,0.17763932,119.95,119.94,35.7028553]
[1743908757570,0.17763932,119.95,119.94,42.8428553]
[1743908757768,0.17763932,119.95,119.94,24.19320644]
[1743908757967,0.17763932,119.95,119.94,42.8428553]
[1743908758371,0.17763932,119.95,119.94,7.14]
[1743908758753,0.17763932,119.95,119.93,16.62672173]
[1743908758954,6.3048,119.94,119.91,7.14]
[1743908759154,22.93152173,119.94,119.91,7.14]
[1743908759447,6.3048,119.94,119.93,42.62672173]
[1743908759652,0.17763932,119.95,119.94,0.42648471]
[1743908759868,0.17763932,119.95,119.94,35.7028553]
[1743908760258,0.16238806,119.96,119.94,85.7628553]
[1743908760458,0.16908024,119.97,119.96,19.07613357]
[1743908760670,0.15281231,119.98,119.96,152.26974222]
[1743908760870,0.15281231,119.98,119.97,35.7028553]
[1743908761574,0.15281231,119.98,119.95,26.0]
[1743908761778,0.15281231,119.98,119.95,42.62672173]
[1743908762474,0.15281231,119.98,119.95,16.62672173]
[1743908762975,0.15281231,119.98,119.96,16.62672173]
[1743908763163,0.15281231,119.98,119.97,17.05320644]
[1743908763359,0.15281231,119.98,119.97,16.62672173]
[1743908763557,0.15281231,119.98,119.97,17.05320644]
[1743908763762,0.15281231,119.98,119.97,42.8428553]
[1743908764166,0.15281231,119.98,119.97,109.34974222]
[1743908764370,0.16573713,119.99,119.98,102.20974222]
[1743908764867,0.15677781,120.01,120.0,19.07613357]
[1743908765074,0.18203075,120.03,120.02,45.07613357]
[1743908765265,0.18203075,120.03,120.02,68.8628553]
[1743908765775,0.18203075,120.03,120.02,78.0741506]
[1743908766284,0.03,120.06,120.03,69.13613357]
[1743908766466,0.03,120.06,120.05,19.07613357]
[1743908766670,0.03,120.1,120.09,26.14216157]
[1743908766875,0.03,120.1,120.09,78.0741506]
[1743908767262,0.03,120.1,120.09,59.42450174]
[1743908767983,0.03,120.1,120.09,78.0741506]
[1743908769684,0.03,120.11,120.09,78.0741506]
[1743908769871,0.03,120.11,120.1,44.9141506]
[1743908770067,0.03,120.11,120.1,0.42648471]
[1743908770272,0.03,120.11,120.09,33.16]
[1743908770273,0.03,120.11,120.08,25.83801703]
[1743908770460,25.86801703,120.11,120.05,0.14216157]
[1743908770657,32.38091703,120.09,120.04,25.83801703]
[1743908770862,25.83801703,120.08,120.04,0.14216157]
[1743908771277,32.38091703,120.09,120.04,25.9801786]
[1743908773182,81.8,120.08,120.04,25.83801703]
[1743908774277,107.63801703,120.07,120.02,25.83801703]
[1743908774487,25.83801703,120.06,120.01,33.01801703]
[1743908774794,107.63801703,120.05,120.01,7.18]
[1743908775168,0.17513404,120.02,120.01,7.18]
[1743908777481,0.17513404,120.02,120.01,33.44450174]
[1743908777775,0.17513404,120.02,120.01,52.0941506]
[1743908778375,0.17513404,120.02,120.01,33.44450174]
[1743908778978,0.17513404,120.02,120.01,33.01801703]
[1743908779581,0.17513404,120.02,120.01,7.18]
[1743908779781,0.17513404,120.02,119.99,26.26450174]
[1743908780690,0.17513404,120.02,120.0,25.83801703]
[1743908781369,0.17513404,120.02,120.01,25.83801703]
[1743908783392,0.17513404,120.02,120.0,26.26450174]
[1743908783889,0.17513404,120.02,120.01,44.48766589]
[1743908784074,0.17513404,120.02,120.01,44.9141506]
[1743908784473,0.17513404,120.02,120.01,44.9771506]
[1743908785171,0.17513404,120.02,120.01,26.32750174]
[1743908785495,0.17513404,120.02,120.01,0.063]
[1743908787207,0.17513404,120.02,120.01,52.32750174]
[1743908787499,0.17513404,120.02,120.01,70.9771506]
[1743908788099,0.17513404,120.02,120.01,52.32750174]
[1743908788872,0.17513404,120.02,120.01,26.48948471]
[1743908789100,0.17513404,120.02,120.01,52.32750174]
[1743908789896,0.17513404,120.02,120.01,70.9771506]
[1743908793500,0.17513404,120.02,120.01,45.13913357]
[1743908793794,0.17513404,120.02,120.01,70.9771506]
[1743908795192,0.32616358,120.02,120.01,70.9771506]
[1743908796001,0.15102954,120.02,120.01,70.9771506]
[1743908798699,0.15102954,120.02,120.01,52.32750174]
[1743908798879,0.15102954,120.02,120.01,70.9771506]
[1743908801893,0.15102954,120.02,120.01,52.32750174]
[1743908802209,0.15102954,120.02,120.01,26.48948471]
[1743908802393,0.15102954,120.02,120.01,52.32750174]
[1743908802703,0.15102954,120.02,120.01,45.13913357]
[1743908802904,0.15102954,120.02,120.01,70.9771506]
[1743908811511,0.15102954,120.02,120.01,0.063]
[1743908813833,0.15102954,120.02,120.01,52.32750174]
[1743908814622,0.15102954,120.02,120.01,59.44750174]
[1743908815197,0.3246997,120.02,120.01,59.44750174]
[1743908816000,0.17367016,120.02,120.01,33.60948471]
[1743908816218,0.17367016,120.02,120.01,59.44750174]
[1743908816521,0.17367016,120.02,120.01,78.0971506]
[1743908821734,0.17367016,120.02,120.01,68.80294928]
[1743908832748,0.17367016,120.02,120.01,118.86294928]
[1743908835243,0.34507298,120.02,120.01,118.86294928]
[1743908836148,0.17140282,120.02,120.01,118.86294928]
[1743908852647,0.16734821,120.03,120.02,85.67994928]
[1743908855349,0.33543322,120.03,120.02,85.67994928]
[1743908855564,0.34465726,120.09,120.04,94.85181043]
[1743908855771,0.34465726,120.09,120.08,42.97030042]
[1743908856063,0.17251613,120.09,120.08,42.97030042]
[1743908858080,0.17251613,120.09,120.08,61.61994928]
[1743908860274,0.17251613,120.09,120.08,35.61994928]
[1743908862250,0.20251613,120.09,120.08,35.61994928]
[1743908869881,0.20251613,120.09,120.08,16.97030042]
[1743908871180,0.20251613,120.09,120.08,45.07613357]
[1743908871480,0.20251613,120.09,120.08,61.61994928]
[1743908875278,0.36715115,120.09,120.08,61.61994928]
[1743908875998,0.19463502,120.09,120.08,61.61994928]
[1743908876162,0.19463502,120.09,120.08,61.68294928]
[1743908879399,0.19463502,120.09,120.08,26.063]
[1743908879684,0.19463502,120.09,120.08,0.063]
[1743908879878,16.73845073,120.09,120.08,0.063]
[1743908882074,0.19463502,120.09,120.08,0.063]
[1743908890580,24.51795073,120.09,120.03,0.14216157]
[1743908890778,81.8,120.08,120.03,0.14216157]
[1743908890981,16.54381571,120.06,120.03,0.42648471]
[1743908891591,16.54381571,120.06,120.03,0.14216157]
[1743908891990,16.54381571,120.06,120.03,0.28432314]
[1743908892191,16.54381571,120.06,120.03,0.42648471]
[1743908892598,16.54381571,120.06,120.02,7.103]
[1743908892894,16.54381571,120.07,120.03,0.42648471]
[1743908893798,16.54381571,120.06,120.03,0.42648471]
[1743908894776,16.54381571,120.06,120.02,23.64681571]
[1743908895178,0.15201416,120.03,120.02,7.103]
[1743908895378,0.15201416,120.03,120.02,0.48948471]
[1743908901501,0.15201416,120.03,120.02,17.03330042]
[1743908901799,0.15201416,120.03,120.02,35.68294928]
[1743908902779,0.15201416,120.03,120.02,85.69294928]
[1743908913209,0.15201416,120.03,120.02,35.68294928]
[1743908915193,0.33083678,120.03,120.02,35.68294928]
[1743908915917,0.33083678,120.03,120.02,85.69294928]
[1743908916113,0.17882262,120.03,120.02,35.68294928]
[1743908917321,0.17882262,120.03,120.02,85.69294928]
[1743908923321,0.17320963,120.05,120.04,0.14216157]
[1743908923521,0.17320963,120.05,120.04,16.97030042]
[1743908926207,0.17320963,120.05,120.04,61.61994928]
[1743908927322,0.17320963,120.05,120.02,50.073]
[1743908927323,0.17320963,120.05,120.02,0.063]
[1743908927503,6.34380963,120.05,120.02,0.20516157]
[1743908927902,6.34380963,120.05,120.02,0.48948471]
[1743908928122,6.34380963,120.05,120.02,17.03330042]
[1743908928425,6.34380963,120.05,120.02,0.48948471]
[1743908928807,6.34380963,120.05,120.02,17.03330042]
[1743908930424,83.4107,120.04,120.02,0.063]
[1743908930603,83.4107,120.04,120.02,16.60681571]
[1743908933326,81.8,120.04,120.03,16.54381571]
[1743908933712,81.8,120.04,120.03,23.58381571]
[1743908933908,81.8,120.04,120.03,7.04]
[1743908935210,81.95188596,120.04,120.03,7.04]
[1743908937130,81.95188596,120.04,120.03,23.58381571]
[1743908938433,81.95188596,120.04,120.03,7.04]
[1743908943816,81.95188596,120.04,120.03,23.58381571]
[1743908945042,81.95188596,120.04,120.03,24.01030042]
[1743908949742,0.15188596,120.04,120.03,24.01030042]
[1743908953343,0.15188596,120.04,120.03,24.07330042]
[1743908953845,0.15188596,120.04,120.03,7.52948471]
[1743908954153,0.15188596,120.04,120.03,24.07330042]
[1743908955243,0.31437582,120.04,120.03,24.07330042]
[1743908955746,0.31437582,120.04,120.03,7.52948471]
[1743908956146,0.16248986,120.04,120.03,7.52948471]
[1743908963126,0.16248986,120.04,120.03,24.07330042]
[1743908967442,0.19248986,120.04,120.03,24.07330042]
[1743908975346,0.36192974,120.04,120.03,24.07330042]
[1743908976063,0.19943988,120.04,120.03,24.07330042]
[1743908995254,0.35990137,120.04,120.03,24.07330042]
[1743908995867,0.35990137,120.04,120.03,42.72294928]
[1743908996073,0.19046149,120.04,120.03,42.72294928]
[1743909000078,0.19046149,120.04,120.03,24.07330042]
[1743909004780,0.19046149,120.04,120.03,42.72294928]
[1743909012265,0.15095697,120.06,120.04,19.07613357]
[1743909012464,0.16259005,120.07,120.06,0.14216157]
[1743909012671,0.16259005,120.07,120.06,16.97030042]
[1743909013160,0.16259005,120.07,120.06,35.61994928]
[1743909014890,0.20808341,120.08,120.07,0.42648471]
[1743909015078,0.20808341,120.08,120.07,24.01030042]
[1743909015393,0.37912097,120.08,120.07,24.01030042]
[1743909015968,0.20103756,120.08,120.07,24.01030042]
[1743909020988,0.20103756,120.08,120.07,42.65994928]
[1743909021189,0.20906293,120.09,120.08,0.42648471]
[1743909021389,0.20906293,120.09,120.08,16.97030042]
[1743909032516,0.20906293,120.09,120.08,35.61994928]
[1743909035425,0.38084464,120.09,120.08,35.61994928]
[1743909036030,0.20178171,120.09,120.08,35.61994928]
[1743909037324,0.21103715,120.1,120.09,19.07613357]
[1743909037525,0.21103715,120.1,120.09,35.61994928]
[1743909049454,0.20200899,120.11,120.1,0.42648471]
[1743909049751,0.20200899,120.11,120.1,16.97030042]
[1743909055457,0.38093657,120.11,120.1,16.97030042]
[1743909056069,0.20892758,120.11,120.1,16.97030042]
[1743909058176,1e-08,120.13,120.12,45.07613357]
[1743909058487,0.15001382,120.16,120.15,44.64964886]
[1743909059090,0.15001382,120.16,120.14,4.22857876]
[1743909059274,0.15001382,120.16,120.15,18.64964886]
[1743909060967,0.15001382,120.16,120.15,25.45336975]
[1743909061178,0.15001382,120.16,120.15,0.42648471]
[1743909063188,0.1882752,120.17,120.16,0.42648471]
[1743909063387,0.1882752,120.17,120.16,42.63994928]
[1743909063889,0.1882752,120.17,120.16,7.30432314]
[1743909064063,0.1882752,120.17,120.16,23.84813885]
[1743909064264,1.7025752,120.17,120.14,7.02]
[1743909064481,6.5858,120.16,120.14,7.02]
[1743909065575,6.5858,120.16,120.14,23.56381571]
[1743909068188,6.5858,120.16,120.15,16.97030042]
[1743909068572,0.1882752,120.17,120.16,19.07613357]
[1743909068771,0.1882752,120.17,120.16,35.61994928]
[1743909075189,0.1882752,120.17,120.16,85.62994928]
[1743909075382,0.36634256,120.17,120.16,19.07613357]
[1743909075578,0.36634256,120.17,120.16,35.61994928]
[1743909075792,0.36634256,120.17,120.16,42.63994928]
[1743909075989,0.20806736,120.17,120.16,42.63994928]
[1743909080097,0.2198164,120.18,120.16,42.63994928]
[1743909080484,0.2198164,120.18,120.17,35.61994928]
[1743909081397,0.18235562,120.19,120.18,19.07613357]
[1743909081596,0.18235562,120.19,120.18,101.79521212]
[1743909081796,0.18644738,120.2,120.18,101.79521212]
[1743909082004,0.18644738,120.2,120.19,101.79521212]
[1743909082510,0.18644738,120.2,120.19,35.61994928]